[Event "Titled Tuesday Blitz July 25 Late 2023"]
[White "Al Mukhaini, Shima"]
[Black "Khripachenko, Alexander"]
[WhiteFideId "22005854"]
[BlackFideId "54184975"]
[WhiteElo "2398"]
[BlackElo "2752"]
[Result "1-0"]
[Round "1"]
[TimeControl "180+2"]
[Date "2023.07.25"]
[WhiteClock "0:01:43"]
[BlackClock "0:01:26"]
[Board "85"]

1. d4 {[%clk 0:02:58]}  d5 {[%clk 0:02:58]} 2. c4 {[%clk 0:02:57]}  e6 {[%clk 0:02:58]} 3. Nc3 {[%clk 0:02:57]}  Be7 {[%clk 0:02:58]} 4. Nf3 {[%clk 0:02:57]}  Nf6 {[%clk 0:02:58]} 5. Bg5 {[%clk 0:02:57]}  h6 {[%clk 0:02:57]} 6. Bh4 {[%clk 0:02:57]}  O-O {[%clk 0:02:57]} 7. e3 {[%clk 0:02:57]}  Ne4 {[%clk 0:02:58]} 8. Bxe7 {[%clk 0:02:56]}  Qxe7 {[%clk 0:02:59]} 9. Nxe4 {[%clk 0:02:56]}  dxe4 {[%clk 0:02:59]} 10. Nd2 {[%clk 0:02:57]}  e5 {[%clk 0:03:00]} 11. d5 {[%clk 0:02:54]}  f5 {[%clk 0:03:00]} 12. Qc2 {[%clk 0:02:50]}  a5 {[%clk 0:03:00]} 13. O-O-O {[%clk 0:02:44]}  Na6 {[%clk 0:03:00]} 14. Kb1 {[%clk 0:02:42]}  Bd7 {[%clk 0:02:59]} 15. f3 {[%clk 0:02:40]}  exf3 {[%clk 0:02:58]} 16. gxf3 {[%clk 0:02:41]}  Nc5 {[%clk 0:02:59]} 17. Rg1 {[%clk 0:02:36]}  f4 {[%clk 0:02:53]} 18. e4 {[%clk 0:02:31]}  Qh4 {[%clk 0:02:48]} 19. Nb3 {[%clk 0:02:25]}  Ba4 {[%clk 0:02:47]} 20. Rg2 {[%clk 0:02:18]}  Bxb3 {[%clk 0:02:47]} 21. axb3 {[%clk 0:02:18]}  Qf6 {[%clk 0:02:30]} 22. Qc3 {[%clk 0:02:16]}  Rfe8 {[%clk 0:02:02]} 23. Bd3 {[%clk 0:02:15]}  Qb6 {[%clk 0:01:50]} 24. Bc2 {[%clk 0:02:14]}  Qb4 {[%clk 0:01:50]} 25. Rdg1 {[%clk 0:02:06]}  Re7 {[%clk 0:01:49]} 26. Rg6 {[%clk 0:02:02]}  Rf8 {[%clk 0:01:42]} 27. Rxh6 {[%clk 0:01:59]}  b6 {[%clk 0:01:37]} 28. Rhg6 {[%clk 0:01:57]}  Qxc3 {[%clk 0:01:32]} 29. bxc3 {[%clk 0:01:57]}  Kf7 {[%clk 0:01:33]} 30. Rxg7+ {[%clk 0:01:52]}  Ke8 {[%clk 0:01:32]} 31. Rxe7+ {[%clk 0:01:51]}  Kxe7 {[%clk 0:01:33]} 32. Rg7+ {[%clk 0:01:51]}  Kd6 {[%clk 0:01:34]} 33. b4 {[%clk 0:01:45]}  Na6 {[%clk 0:01:33]} 34. c5+ {[%clk 0:01:44]}  bxc5 {[%clk 0:01:26]} 35. Rg6+ {[%clk 0:01:43]} 1-0


[Site "https://www.chess.com"]

[Event "Titled Tuesday Blitz July 25 Late 2023"]
[White "Fernandez Diaz, Cristian"]
[Black "Tanenbaum, Zachary"]
[WhiteFideId "22256687"]
[BlackFideId "2060850"]
[WhiteElo "2386"]
[BlackElo "2740"]
[Result "0-1"]
[Round "1"]
[TimeControl "180+2"]
[Date "2023.07.25"]
[WhiteClock "0:00:45"]
[BlackClock "0:00:33"]
[Board "89"]

1. d4 {[%clk 0:02:59]}  d5 {[%clk 0:02:05]} 2. c4 {[%clk 0:02:58]}  dxc4 {[%clk 0:02:04]} 3. Nf3 {[%clk 0:02:58]}  Nf6 {[%clk 0:02:03]} 4. e3 {[%clk 0:02:58]}  Bg4 {[%clk 0:02:04]} 5. Bxc4 {[%clk 0:02:58]}  e6 {[%clk 0:02:04]} 6. O-O {[%clk 0:02:57]}  Nc6 {[%clk 0:02:05]} 7. Nc3 {[%clk 0:02:57]}  Bd6 {[%clk 0:02:04]} 8. h3 {[%clk 0:02:56]}  Bh5 {[%clk 0:02:03]} 9. Qe2 {[%clk 0:02:55]}  O-O {[%clk 0:02:02]} 10. Rd1 {[%clk 0:02:55]}  Qe7 {[%clk 0:01:57]} 11. Bb3 {[%clk 0:02:42]}  e5 {[%clk 0:01:55]} 12. dxe5 {[%clk 0:02:24]}  Nxe5 {[%clk 0:01:54]} 13. Nd5 {[%clk 0:02:18]}  Nxd5 {[%clk 0:01:41]} 14. Bxd5 {[%clk 0:02:19]}  c6 {[%clk 0:01:41]} 15. Be4 {[%clk 0:02:19]}  f5 {[%clk 0:01:41]} 16. Bc2 {[%clk 0:02:18]}  Nxf3+ {[%clk 0:01:40]} 17. gxf3 {[%clk 0:02:18]}  Qh4 {[%clk 0:01:39]} 18. Kg2 {[%clk 0:02:10]}  Qg5+ {[%clk 0:00:56]} 19. Kf1 {[%clk 0:02:01]}  Bh2 {[%clk 0:00:56]} 20. Qc4+ {[%clk 0:01:57]}  Kh8 {[%clk 0:00:54]} 21. e4 {[%clk 0:01:09]}  Qg1+ {[%clk 0:00:41]} 22. Ke2 {[%clk 0:01:09]}  Qg2 {[%clk 0:00:38]} 23. Qb3 {[%clk 0:01:03]}  fxe4 {[%clk 0:00:37]} 24. Bxe4 {[%clk 0:01:02]}  Rae8 {[%clk 0:00:35]} 25. Qe3 {[%clk 0:00:49]}  Rxe4 {[%clk 0:00:33]} 26. Qxe4 {[%clk 0:00:49]}  Bxf3+ {[%clk 0:00:34]} 27. Qxf3 {[%clk 0:00:48]}  Qxf3+ {[%clk 0:00:35]} 28. Kd2 {[%clk 0:00:45]}  Rd8+ {[%clk 0:00:33]} 0-1


[Site "https://www.chess.com"]

[Event "Titled Tuesday Blitz July 25 Late 2023"]
[White "Leon Oquendo, Jorge"]
[Black "Dwilewicz, Katarzyna"]
[WhiteFideId "3514803"]
[BlackFideId "1148486"]
[WhiteElo "2731"]
[BlackElo "2384"]
[Result "0-1"]
[Round "1"]
[TimeControl "180+2"]
[Date "2023.07.25"]
[WhiteClock "0:00:15"]
[BlackClock "0:00:23"]
[Board "90"]

1. d4 {[%clk 0:02:58]}  d5 {[%clk 0:02:59]} 2. c4 {[%clk 0:02:58]}  dxc4 {[%clk 0:02:59]} 3. e3 {[%clk 0:02:56]}  Nf6 {[%clk 0:02:58]} 4. Bxc4 {[%clk 0:02:56]}  e6 {[%clk 0:02:58]} 5. Nf3 {[%clk 0:02:56]}  c5 {[%clk 0:02:58]} 6. O-O {[%clk 0:02:56]}  a6 {[%clk 0:02:59]} 7. Nc3 {[%clk 0:02:55]}  Nc6 {[%clk 0:02:59]} 8. Qe2 {[%clk 0:02:52]}  b5 {[%clk 0:02:52]} 9. Bb3 {[%clk 0:02:51]}  Bb7 {[%clk 0:02:52]} 10. Rd1 {[%clk 0:02:44]}  Qc7 {[%clk 0:02:38]} 11. d5 {[%clk 0:02:32]}  exd5 {[%clk 0:02:37]} 12. Nxd5 {[%clk 0:02:32]}  Nxd5 {[%clk 0:02:35]} 13. Bxd5 {[%clk 0:02:33]}  Be7 {[%clk 0:02:30]} 14. e4 {[%clk 0:02:26]}  O-O {[%clk 0:02:28]} 15. e5 {[%clk 0:02:23]}  Rad8 {[%clk 0:02:21]} 16. Bf4 {[%clk 0:02:22]}  Nd4 {[%clk 0:02:02]} 17. Nxd4 {[%clk 0:02:11]}  Bxd5 {[%clk 0:01:57]} 18. Nf5 {[%clk 0:02:09]}  Be6 {[%clk 0:01:55]} 19. Nd6 {[%clk 0:02:06]}  Qc6 {[%clk 0:01:42]} 20. a4 {[%clk 0:02:00]}  c4 {[%clk 0:01:39]} 21. axb5 {[%clk 0:01:59]}  axb5 {[%clk 0:01:40]} 22. Ra7 {[%clk 0:01:52]}  Bxd6 {[%clk 0:01:21]} 23. exd6 {[%clk 0:01:53]}  Rfe8 {[%clk 0:01:21]} 24. Qd2 {[%clk 0:01:48]}  Bg4 {[%clk 0:01:18]} 25. f3 {[%clk 0:01:44]}  Bf5 {[%clk 0:01:12]} 26. Rc7 {[%clk 0:01:27]}  Qb6+ {[%clk 0:01:07]} 27. Qd4 {[%clk 0:01:28]}  Qa5 {[%clk 0:00:37]} 28. Kf2 {[%clk 0:01:22]}  h6 {[%clk 0:00:37]} 29. h4 {[%clk 0:01:21]}  Bd3 {[%clk 0:00:34]} 30. Kg3 {[%clk 0:01:02]}  Qxc7 {[%clk 0:00:31]} 31. Be5 {[%clk 0:00:35]}  Qd7 {[%clk 0:00:25]} 32. Kf2 {[%clk 0:00:27]}  Qf5 {[%clk 0:00:24]} 33. Bxg7 {[%clk 0:00:25]}  Re2+ {[%clk 0:00:24]} 34. Kg1 {[%clk 0:00:20]}  Qg6 {[%clk 0:00:24]} 35. Bf6 {[%clk 0:00:15]}  Qxg2# {[%clk 0:00:23]} 0-1


[Site "https://www.chess.com"]

[Event "Titled Tuesday Blitz July 25 Late 2023"]
[White "Panesar Vedant"]
[Black "Storn, Justin"]
[WhiteFideId "35033018"]
[BlackFideId "30922720"]
[WhiteElo "2714"]
[BlackElo "2382"]
[Result "1-0"]
[Round "1"]
[TimeControl "180+2"]
[Date "2023.07.25"]
[WhiteClock "0:02:39"]
[BlackClock "0:01:41"]
[Board "92"]

1. d4 {[%clk 0:03:00]}  Nf6 {[%clk 0:02:14]} 2. c4 {[%clk 0:03:00]}  g6 {[%clk 0:02:14]} 3. Nc3 {[%clk 0:02:58]}  Bg7 {[%clk 0:02:15]} 4. e4 {[%clk 0:02:57]}  d6 {[%clk 0:02:15]} 5. Be2 {[%clk 0:02:58]}  O-O {[%clk 0:02:14]} 6. Be3 {[%clk 0:02:59]}  e5 {[%clk 0:02:10]} 7. d5 {[%clk 0:02:59]}  a5 {[%clk 0:02:09]} 8. h4 {[%clk 0:02:59]}  h5 {[%clk 0:02:04]} 9. Qc2 {[%clk 0:02:53]}  Na6 {[%clk 0:02:03]} 10. f3 {[%clk 0:02:53]}  Nc5 {[%clk 0:02:02]} 11. O-O-O {[%clk 0:02:53]}  a4 {[%clk 0:01:48]} 12. Nh3 {[%clk 0:02:42]}  Bd7 {[%clk 0:01:47]} 13. Ng5 {[%clk 0:02:42]}  c6 {[%clk 0:01:42]} 14. dxc6 {[%clk 0:02:40]}  Bxc6 {[%clk 0:01:41]} 15. Bxc5 {[%clk 0:02:39]} 1-0


[Site "https://www.chess.com"]

[Event "Titled Tuesday Blitz July 25 Late 2023"]
[White "Dimitrov, Atanas"]
[Black "Lalanne, Pablo"]
[WhiteFideId "2901315"]
[BlackFideId "112151"]
[WhiteElo "2711"]
[BlackElo "2377"]
[Result "0-1"]
[Round "1"]
[TimeControl "180+2"]
[Date "2023.07.25"]
[WhiteClock "0:00:00"]
[BlackClock "0:00:12"]
[Board "94"]

1. Nf3 {[%clk 0:02:59]}  c5 {[%clk 0:02:59]} 2. e4 {[%clk 0:02:57]}  d6 {[%clk 0:02:59]} 3. d4 {[%clk 0:02:56]}  cxd4 {[%clk 0:02:59]} 4. Nxd4 {[%clk 0:02:57]}  Nf6 {[%clk 0:02:59]} 5. Nc3 {[%clk 0:02:57]}  Nc6 {[%clk 0:03:00]} 6. Nde2 {[%clk 0:02:54]}  e6 {[%clk 0:02:55]} 7. g3 {[%clk 0:02:53]}  Be7 {[%clk 0:02:53]} 8. Bg2 {[%clk 0:02:54]}  O-O {[%clk 0:02:54]} 9. O-O {[%clk 0:02:55]}  a6 {[%clk 0:02:53]} 10. a4 {[%clk 0:02:55]}  Qc7 {[%clk 0:02:48]} 11. h3 {[%clk 0:02:51]}  Rb8 {[%clk 0:02:41]} 12. Be3 {[%clk 0:02:41]}  b5 {[%clk 0:02:39]} 13. axb5 {[%clk 0:02:42]}  axb5 {[%clk 0:02:39]} 14. Nd4 {[%clk 0:02:36]}  Nxd4 {[%clk 0:02:37]} 15. Bxd4 {[%clk 0:02:33]}  b4 {[%clk 0:02:30]} 16. Ne2 {[%clk 0:02:30]}  e5 {[%clk 0:02:14]} 17. Be3 {[%clk 0:02:29]}  Be6 {[%clk 0:02:12]} 18. Qd2 {[%clk 0:02:26]}  Rfc8 {[%clk 0:02:07]} 19. Rfc1 {[%clk 0:02:25]}  Qd7 {[%clk 0:01:50]} 20. Kh2 {[%clk 0:02:22]}  d5 {[%clk 0:01:49]} 21. exd5 {[%clk 0:02:20]}  Bxd5 {[%clk 0:01:48]} 22. Rd1 {[%clk 0:02:05]}  Rd8 {[%clk 0:01:34]} 23. Qe1 {[%clk 0:01:41]}  Qc6 {[%clk 0:01:27]} 24. Qh1 {[%clk 0:01:27]}  Bxg2 {[%clk 0:01:15]} 25. Qxg2 {[%clk 0:01:19]}  Qxc2 {[%clk 0:01:14]} 26. Rxd8+ {[%clk 0:01:02]}  Rxd8 {[%clk 0:01:15]} 27. Qf1 {[%clk 0:01:01]}  Qxb2 {[%clk 0:01:12]} 28. Rb1 {[%clk 0:01:01]}  Qc2 {[%clk 0:01:09]} 29. Rc1 {[%clk 0:01:00]}  Qe4 {[%clk 0:01:01]} 30. Bg5 {[%clk 0:00:48]}  h6 {[%clk 0:00:57]} 31. Bxf6 {[%clk 0:00:47]}  Bxf6 {[%clk 0:00:57]} 32. Ng1 {[%clk 0:00:46]}  b3 {[%clk 0:00:52]} 33. Rb1 {[%clk 0:00:42]}  Rb8 {[%clk 0:00:49]} 34. Ne2 {[%clk 0:00:35]}  Qd3 {[%clk 0:00:43]} 35. Rd1 {[%clk 0:00:18]}  Qc4 {[%clk 0:00:34]} 36. Rc1 {[%clk 0:00:13]}  Qb5 {[%clk 0:00:31]} 37. Qe1 {[%clk 0:00:12]}  b2 {[%clk 0:00:30]} 38. Rb1 {[%clk 0:00:10]}  Qb3 {[%clk 0:00:26]} 39. Nc3 {[%clk 0:00:10]}  Qc2 {[%clk 0:00:18]} 40. Ne4 {[%clk 0:00:08]}  Be7 {[%clk 0:00:17]} 41. Kg2 {[%clk 0:00:06]}  f5 {[%clk 0:00:15]} 42. Nd2 {[%clk 0:00:02]}  Bb4 {[%clk 0:00:13]} 43. Qxe5 {[%clk 0:00:00]}  Bxd2 {[%clk 0:00:12]} 0-1


[Site "https://www.chess.com"]

[Event "Titled Tuesday Blitz July 25 Late 2023"]
[White "Chabris, Christopher"]
[Black "Sabuk, Piotr"]
[WhiteFideId "2005263"]
[BlackFideId "1137565"]
[WhiteElo "2369"]
[BlackElo "2699"]
[Result "0-1"]
[Round "1"]
[TimeControl "180+2"]
[Date "2023.07.25"]
[WhiteClock "0:00:00"]
[BlackClock "0:00:02"]
[Board "99"]

1. e4 {[%clk 0:02:59]}  e5 {[%clk 0:02:57]} 2. Nf3 {[%clk 0:02:59]}  Nc6 {[%clk 0:02:57]} 3. Bb5 {[%clk 0:02:59]}  a6 {[%clk 0:02:56]} 4. Ba4 {[%clk 0:02:59]}  Nf6 {[%clk 0:02:55]} 5. O-O {[%clk 0:02:59]}  Be7 {[%clk 0:02:54]} 6. Re1 {[%clk 0:02:59]}  b5 {[%clk 0:02:55]} 7. Bb3 {[%clk 0:02:59]}  d6 {[%clk 0:02:56]} 8. c3 {[%clk 0:02:59]}  O-O {[%clk 0:02:55]} 9. h3 {[%clk 0:02:59]}  Re8 {[%clk 0:02:54]} 10. d4 {[%clk 0:02:57]}  Bb7 {[%clk 0:02:54]} 11. Ng5 {[%clk 0:02:55]}  Rf8 {[%clk 0:02:55]} 12. Nf3 {[%clk 0:02:54]}  Nd7 {[%clk 0:02:49]} 13. a4 {[%clk 0:02:51]}  Bf6 {[%clk 0:02:45]} 14. d5 {[%clk 0:02:48]}  Na5 {[%clk 0:02:43]} 15. Bc2 {[%clk 0:02:48]}  Nc4 {[%clk 0:02:37]} 16. b3 {[%clk 0:02:44]}  Ncb6 {[%clk 0:02:36]} 17. a5 {[%clk 0:02:42]}  Nc8 {[%clk 0:02:36]} 18. c4 {[%clk 0:02:37]}  c6 {[%clk 0:02:22]} 19. Nbd2 {[%clk 0:02:16]}  Ne7 {[%clk 0:02:15]} 20. Bb2 {[%clk 0:02:08]}  Ng6 {[%clk 0:02:11]} 21. cxb5 {[%clk 0:01:52]}  axb5 {[%clk 0:02:09]} 22. dxc6 {[%clk 0:01:51]}  Bxc6 {[%clk 0:02:09]} 23. b4 {[%clk 0:01:51]}  Nf4 {[%clk 0:02:08]} 24. Nf1 {[%clk 0:01:42]}  Be7 {[%clk 0:02:02]} 25. Bb3 {[%clk 0:01:40]}  Qc7 {[%clk 0:01:58]} 26. Rc1 {[%clk 0:01:39]}  Qb7 {[%clk 0:01:57]} 27. Ng3 {[%clk 0:01:38]}  g6 {[%clk 0:01:57]} 28. Qc2 {[%clk 0:01:22]}  Rac8 {[%clk 0:01:55]} 29. Qb1 {[%clk 0:01:19]}  Nf6 {[%clk 0:01:54]} 30. Ng5 {[%clk 0:00:51]}  h6 {[%clk 0:01:46]} 31. Nf3 {[%clk 0:00:50]}  Kg7 {[%clk 0:01:33]} 32. Rcd1 {[%clk 0:00:44]}  Rfd8 {[%clk 0:01:26]} 33. Qa2 {[%clk 0:00:42]}  Bf8 {[%clk 0:01:20]} 34. a6 {[%clk 0:00:42]}  Qa8 {[%clk 0:01:20]} 35. Nxe5 {[%clk 0:00:32]}  dxe5 {[%clk 0:01:19]} 36. Bxe5 {[%clk 0:00:32]}  Ne6 {[%clk 0:01:06]} 37. Bxf6+ {[%clk 0:00:28]}  Kxf6 {[%clk 0:01:06]} 38. Qb2+ {[%clk 0:00:26]}  Ke7 {[%clk 0:01:05]} 39. Nf5+ {[%clk 0:00:25]}  gxf5 {[%clk 0:01:01]} 40. exf5 {[%clk 0:00:24]}  Rxd1 {[%clk 0:01:01]} 41. Rxd1 {[%clk 0:00:20]}  Bg7 {[%clk 0:01:00]} 42. Qe2 {[%clk 0:00:18]}  Rd8 {[%clk 0:00:50]} 43. Re1 {[%clk 0:00:18]}  Bxg2 {[%clk 0:00:45]} 44. Bxe6 {[%clk 0:00:16]}  Bf3 {[%clk 0:00:25]} 45. Qc2 {[%clk 0:00:10]}  fxe6 {[%clk 0:00:17]} 46. Rxe6+ {[%clk 0:00:10]}  Kf8 {[%clk 0:00:16]} 47. Qc7 {[%clk 0:00:08]}  Rd1+ {[%clk 0:00:13]} 48. Kh2 {[%clk 0:00:08]}  Rh1+ {[%clk 0:00:13]} 49. Kg3 {[%clk 0:00:08]}  Rg1+ {[%clk 0:00:13]} 50. Kh4 {[%clk 0:00:07]}  Bd5 {[%clk 0:00:03]} 51. Re7 {[%clk 0:00:06]}  Bf6+ {[%clk 0:00:03]} 52. Kh5 {[%clk 0:00:06]}  Bf3+ {[%clk 0:00:02]} 53. Kxh6 {[%clk 0:00:06]}  Bxe7 {[%clk 0:00:03]} 54. Qe5 {[%clk 0:00:04]}  Qc6+ {[%clk 0:00:02]} 55. Kh7 {[%clk 0:00:02]}  Qf6 {[%clk 0:00:02]} 56. Qb8+ {[%clk 0:00:00]}  Kf7 {[%clk 0:00:02]} 0-1


[Site "https://www.chess.com"]

[Event "Titled Tuesday Blitz July 25 Late 2023"]
[White "Fisher_TheGalactic"]
[Black "Zhou, Qiyu"]
[BlackFideId "505161"]
[WhiteElo "2690"]
[BlackElo "2365"]
[Result "1-0"]
[Round "1"]
[TimeControl "180+2"]
[Date "2023.07.25"]
[WhiteClock "0:00:36"]
[BlackClock "0:00:47"]
[Board "102"]

1. Nf3 {[%clk 0:02:59]}  Nf6 {[%clk 0:02:59]} 2. g3 {[%clk 0:02:59]}  d5 {[%clk 0:03:00]} 3. Bg2 {[%clk 0:02:58]}  e6 {[%clk 0:03:00]} 4. O-O {[%clk 0:02:59]}  c5 {[%clk 0:03:01]} 5. d3 {[%clk 0:02:59]}  Nc6 {[%clk 0:03:01]} 6. Nbd2 {[%clk 0:02:59]}  Be7 {[%clk 0:03:01]} 7. e4 {[%clk 0:03:00]}  O-O {[%clk 0:02:54]} 8. Re1 {[%clk 0:02:59]}  b6 {[%clk 0:02:49]} 9. exd5 {[%clk 0:02:58]}  exd5 {[%clk 0:02:50]} 10. Nf1 {[%clk 0:02:56]}  Bb7 {[%clk 0:02:47]} 11. Ne3 {[%clk 0:02:56]}  Re8 {[%clk 0:02:46]} 12. Nf5 {[%clk 0:02:55]}  Bf8 {[%clk 0:02:46]} 13. Bg5 {[%clk 0:02:52]}  Bc8 {[%clk 0:02:39]} 14. Ne3 {[%clk 0:02:41]}  Be7 {[%clk 0:02:35]} 15. Nh4 {[%clk 0:02:36]}  Be6 {[%clk 0:02:33]} 16. Nhf5 {[%clk 0:02:33]}  Bf8 {[%clk 0:02:28]} 17. Bxf6 {[%clk 0:01:52]}  Qxf6 {[%clk 0:02:29]} 18. Nxd5 {[%clk 0:01:52]}  Qxf5 {[%clk 0:01:59]} 19. Ne3 {[%clk 0:01:44]}  Qg6 {[%clk 0:01:50]} 20. Bxc6 {[%clk 0:01:41]}  Bg4 {[%clk 0:01:51]} 21. Bf3 {[%clk 0:01:22]}  Bxf3 {[%clk 0:01:50]} 22. Qxf3 {[%clk 0:01:23]}  Rad8 {[%clk 0:01:50]} 23. Nc4 {[%clk 0:01:22]}  f6 {[%clk 0:01:41]} 24. Qc6 {[%clk 0:01:10]}  Qf7 {[%clk 0:01:39]} 25. a4 {[%clk 0:00:55]}  Rc8 {[%clk 0:01:30]} 26. Qb5 {[%clk 0:00:54]}  Ra8 {[%clk 0:01:26]} 27. a5 {[%clk 0:00:52]}  bxa5 {[%clk 0:01:15]} 28. Qxa5 {[%clk 0:00:52]}  Rxe1+ {[%clk 0:01:04]} 29. Rxe1 {[%clk 0:00:53]}  Re8 {[%clk 0:00:59]} 30. Rxe8 {[%clk 0:00:45]}  Qxe8 {[%clk 0:00:59]} 31. Qxa7 {[%clk 0:00:45]}  Qe1+ {[%clk 0:00:58]} 32. Kg2 {[%clk 0:00:45]}  Qe2 {[%clk 0:00:52]} 33. Qd7 {[%clk 0:00:41]}  Qxc2 {[%clk 0:00:49]} 34. Qd5+ {[%clk 0:00:35]}  Kh8 {[%clk 0:00:47]} 35. Qf7 {[%clk 0:00:36]} 1-0


[Site "https://www.chess.com"]

[Event "Titled Tuesday Blitz July 25 Late 2023"]
[White "littlepinkyboy"]
[Black "Jaracz, Pawel"]
[BlackFideId "1102222"]
[WhiteElo "2359"]
[BlackElo "2690"]
[Result "0-1"]
[Round "1"]
[TimeControl "180+2"]
[Date "2023.07.25"]
[WhiteClock "0:00:00"]
[BlackClock "0:00:07"]
[Board "103"]

1. Nf3 {[%clk 0:03:00]}  c5 {[%clk 0:02:53]} 2. g3 {[%clk 0:02:56]}  b6 {[%clk 0:02:53]} 3. Bg2 {[%clk 0:02:54]}  Bb7 {[%clk 0:02:53]} 4. O-O {[%clk 0:02:48]}  Nf6 {[%clk 0:02:50]} 5. c3 {[%clk 0:02:47]}  c4 {[%clk 0:02:32]} 6. b3 {[%clk 0:02:29]}  cxb3 {[%clk 0:02:31]} 7. axb3 {[%clk 0:02:30]}  e6 {[%clk 0:02:31]} 8. d4 {[%clk 0:02:22]}  Be7 {[%clk 0:02:29]} 9. Nbd2 {[%clk 0:02:16]}  O-O {[%clk 0:02:28]} 10. Re1 {[%clk 0:02:16]}  Ne4 {[%clk 0:02:21]} 11. Nxe4 {[%clk 0:01:45]}  Bxe4 {[%clk 0:02:19]} 12. Nh4 {[%clk 0:01:45]}  Bxg2 {[%clk 0:02:19]} 13. Nxg2 {[%clk 0:01:46]}  d5 {[%clk 0:02:18]} 14. e4 {[%clk 0:01:46]}  dxe4 {[%clk 0:02:13]} 15. Rxe4 {[%clk 0:01:47]}  Nd7 {[%clk 0:02:13]} 16. Ba3 {[%clk 0:01:40]}  Nf6 {[%clk 0:02:12]} 17. Re3 {[%clk 0:01:36]}  Nd5 {[%clk 0:02:11]} 18. Rd3 {[%clk 0:01:36]}  a5 {[%clk 0:02:09]} 19. Qd2 {[%clk 0:01:29]}  Bxa3 {[%clk 0:02:06]} 20. Rxa3 {[%clk 0:01:29]}  Qd6 {[%clk 0:02:07]} 21. Ra1 {[%clk 0:01:29]}  Rfc8 {[%clk 0:02:06]} 22. Ne3 {[%clk 0:01:25]}  b5 {[%clk 0:01:58]} 23. c4 {[%clk 0:01:13]}  Nxe3 {[%clk 0:01:44]} 24. c5 {[%clk 0:01:09]}  Qd5 {[%clk 0:01:35]} 25. Qxe3 {[%clk 0:00:40]}  Rd8 {[%clk 0:01:31]} 26. Rc1 {[%clk 0:00:27]}  a4 {[%clk 0:01:30]} 27. bxa4 {[%clk 0:00:25]}  Rxa4 {[%clk 0:01:28]} 28. c6 {[%clk 0:00:25]}  Rc4 {[%clk 0:01:26]} 29. Rdc3 {[%clk 0:00:22]}  Qxc6 {[%clk 0:01:24]} 30. Rxc4 {[%clk 0:00:20]}  bxc4 {[%clk 0:01:25]} 31. Qc3 {[%clk 0:00:20]}  Rc8 {[%clk 0:01:25]} 32. Ra1 {[%clk 0:00:18]}  h6 {[%clk 0:01:23]} 33. Ra5 {[%clk 0:00:18]}  Qb6 {[%clk 0:01:07]} 34. d5 {[%clk 0:00:13]}  Rd8 {[%clk 0:00:53]} 35. dxe6 {[%clk 0:00:03]}  Rd1+ {[%clk 0:00:53]} 36. Kg2 {[%clk 0:00:04]}  Qc6+ {[%clk 0:00:52]} 37. f3 {[%clk 0:00:05]}  Rd3 {[%clk 0:00:14]} 38. exf7+ {[%clk 0:00:03]}  Kf8 {[%clk 0:00:11]} 39. Qb4+ {[%clk 0:00:02]}  Kxf7 {[%clk 0:00:11]} 40. Ra7+ {[%clk 0:00:03]}  Kg6 {[%clk 0:00:09]} 41. Qe7 {[%clk 0:00:01]}  Qxf3+ {[%clk 0:00:09]} 42. Kh3 {[%clk 0:00:01]}  Qf5+ {[%clk 0:00:07]} 43. Kg2 {[%clk 0:00:01]}  Rd2+ {[%clk 0:00:07]} 44. Kg1 {[%clk 0:00:00]}  Qf2+ {[%clk 0:00:07]} 0-1


[Site "https://www.chess.com"]

[Event "Titled Tuesday Blitz July 25 Late 2023"]
[White "Goltsev, Dmitry"]
[Black "Srdanovic, Jovana"]
[WhiteFideId "24176710"]
[BlackFideId "954810"]
[WhiteElo "2687"]
[BlackElo "2356"]
[Result "1-0"]
[Round "1"]
[TimeControl "180+2"]
[Date "2023.07.25"]
[WhiteClock "0:02:01"]
[BlackClock "0:01:57"]
[Board "104"]

1. e4 {[%clk 0:02:59]}  c5 {[%clk 0:02:59]} 2. Nf3 {[%clk 0:02:59]}  Nf6 {[%clk 0:02:59]} 3. e5 {[%clk 0:02:55]}  Nd5 {[%clk 0:02:57]} 4. Nc3 {[%clk 0:02:55]}  Nxc3 {[%clk 0:02:57]} 5. bxc3 {[%clk 0:02:55]}  Nc6 {[%clk 0:02:57]} 6. d4 {[%clk 0:02:55]}  cxd4 {[%clk 0:02:57]} 7. cxd4 {[%clk 0:02:56]}  d5 {[%clk 0:02:57]} 8. exd6 {[%clk 0:02:57]}  Qxd6 {[%clk 0:02:54]} 9. Bd3 {[%clk 0:02:55]}  Bg4 {[%clk 0:02:54]} 10. c3 {[%clk 0:02:54]}  e6 {[%clk 0:02:53]} 11. O-O {[%clk 0:02:53]}  Be7 {[%clk 0:02:54]} 12. h3 {[%clk 0:02:50]}  Bh5 {[%clk 0:02:51]} 13. a4 {[%clk 0:02:50]}  Bg6 {[%clk 0:02:49]} 14. Ba3 {[%clk 0:02:45]}  Qd7 {[%clk 0:02:44]} 15. Bb5 {[%clk 0:02:40]}  Bxa3 {[%clk 0:02:40]} 16. Rxa3 {[%clk 0:02:36]}  O-O {[%clk 0:02:33]} 17. Ne5 {[%clk 0:02:35]}  Qd6 {[%clk 0:02:33]} 18. Nc4 {[%clk 0:02:28]}  Qe7 {[%clk 0:02:29]} 19. Bxc6 {[%clk 0:02:29]}  bxc6 {[%clk 0:02:28]} 20. Rb3 {[%clk 0:02:28]}  c5 {[%clk 0:02:27]} 21. Ne5 {[%clk 0:02:26]}  cxd4 {[%clk 0:02:26]} 22. cxd4 {[%clk 0:02:27]}  Qd6 {[%clk 0:02:22]} 23. Qd2 {[%clk 0:02:23]}  Rfd8 {[%clk 0:02:20]} 24. Rd1 {[%clk 0:02:12]}  Be4 {[%clk 0:02:20]} 25. Qf4 {[%clk 0:02:07]}  Bg6 {[%clk 0:02:13]} 26. Rb7 {[%clk 0:02:03]}  Rf8 {[%clk 0:01:57]} 27. Nxg6 {[%clk 0:02:01]} 1-0


[Site "https://www.chess.com"]

[Event "Titled Tuesday Blitz July 25 Late 2023"]
[White "Velikanov, Alexander"]
[Black "Topalov, Aleksandar"]
[WhiteFideId "2039290"]
[BlackFideId "925659"]
[WhiteElo "2674"]
[BlackElo "2353"]
[Result "1-0"]
[Round "1"]
[TimeControl "180+2"]
[Date "2023.07.25"]
[WhiteClock "0:00:53"]
[BlackClock "0:00:19"]
[Board "106"]

1. e4 {[%clk 0:02:54]}  e6 {[%clk 0:02:59]} 2. d4 {[%clk 0:02:53]}  d5 {[%clk 0:02:59]} 3. Nc3 {[%clk 0:02:53]}  Bb4 {[%clk 0:02:58]} 4. e5 {[%clk 0:02:48]}  Qd7 {[%clk 0:02:58]} 5. h4 {[%clk 0:02:38]}  h5 {[%clk 0:02:56]} 6. a3 {[%clk 0:02:26]}  Bxc3+ {[%clk 0:02:55]} 7. bxc3 {[%clk 0:02:27]}  b6 {[%clk 0:02:55]} 8. Nh3 {[%clk 0:02:27]}  Ba6 {[%clk 0:02:55]} 9. Bxa6 {[%clk 0:02:24]}  Nxa6 {[%clk 0:02:55]} 10. Nf4 {[%clk 0:02:23]}  g6 {[%clk 0:02:55]} 11. a4 {[%clk 0:02:23]}  Nb8 {[%clk 0:02:53]} 12. g4 {[%clk 0:02:07]}  hxg4 {[%clk 0:02:51]} 13. Qxg4 {[%clk 0:02:08]}  Nc6 {[%clk 0:02:35]} 14. Ba3 {[%clk 0:01:45]}  O-O-O {[%clk 0:02:32]} 15. h5 {[%clk 0:01:35]}  Nh6 {[%clk 0:02:22]} 16. Qg5 {[%clk 0:01:33]}  Nf5 {[%clk 0:02:19]} 17. Ke2 {[%clk 0:01:33]}  gxh5 {[%clk 0:02:15]} 18. Nxh5 {[%clk 0:01:32]}  Na5 {[%clk 0:02:13]} 19. Bb4 {[%clk 0:01:23]}  Nc4 {[%clk 0:01:53]} 20. Nf6 {[%clk 0:01:23]}  Qc6 {[%clk 0:01:53]} 21. a5 {[%clk 0:01:18]}  Qb5 {[%clk 0:01:33]} 22. Rxh8 {[%clk 0:01:18]}  Rxh8 {[%clk 0:01:19]} 23. axb6 {[%clk 0:00:57]}  Nxe5+ {[%clk 0:00:44]} 24. Kd2 {[%clk 0:00:57]}  Nf3+ {[%clk 0:00:44]} 25. Kc1 {[%clk 0:00:57]}  Nxg5 {[%clk 0:00:44]} 26. Rxa7 {[%clk 0:00:58]}  Rh1+ {[%clk 0:00:27]} 27. Kb2 {[%clk 0:00:57]}  Qxb6 {[%clk 0:00:27]} 28. Ra8+ {[%clk 0:00:55]}  Kb7 {[%clk 0:00:27]} 29. Rg8 {[%clk 0:00:53]}  Ne4 {[%clk 0:00:25]} 30. Nd7 {[%clk 0:00:53]}  Qa6 {[%clk 0:00:20]} 31. Rb8+ {[%clk 0:00:52]}  Kc6 {[%clk 0:00:19]} 32. Ne5# {[%clk 0:00:53]} 1-0


[Site "https://www.chess.com"]